[Event "Titled Tuesday Blitz March 22 Late 2022"]
[White "Andreikin, Dmitry"]
[Black "Zhurbinsky, David"]
[WhiteFideId "4158814"]
[BlackFideId "2072904"]
[WhiteElo "2736"]
[BlackElo "2567"]
[Result "1-0"]
[Round "01"]
[TimeControl "180+1"]
[Date "2022.03.22"]
[WhiteClock "0:01:16"]
[BlackClock "0:00:58"]

1. d4 {[%clk 0:02:44]}  Nf6 {[%clk 0:03:00]} 2. Nf3 {[%clk 0:02:43]}  e6 {[%clk 0:03:00]} 3. Bg5 {[%clk 0:02:42]}  Be7 {[%clk 0:03:00]} 4. Nbd2 {[%clk 0:02:41]}  d5 {[%clk 0:02:58]} 5. e3 {[%clk 0:02:41]}  O-O {[%clk 0:02:57]} 6. Bd3 {[%clk 0:02:40]}  c5 {[%clk 0:02:52]} 7. c3 {[%clk 0:02:39]}  Nc6 {[%clk 0:02:51]} 8. h4 {[%clk 0:02:39]}  h6 {[%clk 0:02:45]} 9. Bxf6 {[%clk 0:02:34]}  Bxf6 {[%clk 0:02:46]} 10. g4 {[%clk 0:02:34]}  Be7 {[%clk 0:02:22]} 11. g5 {[%clk 0:02:31]}  hxg5 {[%clk 0:02:00]} 12. Nxg5 {[%clk 0:02:04]}  Bxg5 {[%clk 0:01:35]} 13. Bh7+ {[%clk 0:01:58]}  Kxh7 {[%clk 0:01:25]} 14. hxg5+ {[%clk 0:01:59]}  Kg6 {[%clk 0:01:09]} 15. Qh5+ {[%clk 0:01:57]}  Kf5 {[%clk 0:01:10]} 16. Qh3+ {[%clk 0:01:23]}  Kg6 {[%clk 0:00:58]} 17. Qh7+ {[%clk 0:01:16]}  Kxg5 {[%clk 0:00:58]} 18. Qxg7+ {[%clk 0:01:16]}  Kf5 {[%clk 0:00:58]} 19. Rh5+ {[%clk 0:01:16]} 1-0


[Site "https://www.chess.com"]

[Event "Titled Tuesday Blitz March 22 Late 2022"]
[White "Atanejhad, Sahebali"]
[Black "Rastbod, Ali"]
[WhiteFideId "12506664"]
[BlackFideId "12567477"]
[WhiteElo "1977"]
[BlackElo "2200"]
[Result "0-1"]
[Round "01"]
[TimeControl "180+1"]
[Date "2022.03.22"]
[WhiteClock "0:00:10"]
[BlackClock "0:00:30"]

1. d4 {[%clk 0:02:57]}  Nf6 {[%clk 0:02:56]} 2. c4 {[%clk 0:02:58]}  e6 {[%clk 0:02:50]} 3. Nf3 {[%clk 0:02:57]}  Bb4+ {[%clk 0:02:45]} 4. Bd2 {[%clk 0:02:55]}  Qe7 {[%clk 0:02:41]} 5. g3 {[%clk 0:02:54]}  O-O {[%clk 0:02:41]} 6. Bg2 {[%clk 0:02:55]}  b6 {[%clk 0:02:42]} 7. O-O {[%clk 0:02:54]}  Bb7 {[%clk 0:02:40]} 8. Nc3 {[%clk 0:02:53]}  d6 {[%clk 0:02:32]} 9. Rc1 {[%clk 0:02:49]}  Bxc3 {[%clk 0:02:32]} 10. Bxc3 {[%clk 0:02:49]}  Ne4 {[%clk 0:02:32]} 11. b4 {[%clk 0:02:35]}  c5 {[%clk 0:02:27]} 12. bxc5 {[%clk 0:02:22]}  dxc5 {[%clk 0:02:26]} 13. dxc5 {[%clk 0:02:13]}  Nxc3 {[%clk 0:02:24]} 14. Rxc3 {[%clk 0:02:13]}  Qxc5 {[%clk 0:02:24]} 15. Qd4 {[%clk 0:02:11]}  Na6 {[%clk 0:02:19]} 16. Rd1 {[%clk 0:02:07]}  f6 {[%clk 0:02:06]} 17. Qd7 {[%clk 0:02:03]}  Nc7 {[%clk 0:02:01]} 18. Bh3 {[%clk 0:01:46]}  Rfe8 {[%clk 0:01:49]} 19. Rd6 {[%clk 0:01:34]}  Bc8 {[%clk 0:01:00]} 20. Qc6 {[%clk 0:01:28]}  Qxc6 {[%clk 0:00:59]} 21. Rxc6 {[%clk 0:01:28]}  Na6 {[%clk 0:00:59]} 22. Re3 {[%clk 0:01:19]}  e5 {[%clk 0:00:58]} 23. Bg2 {[%clk 0:00:48]}  Bb7 {[%clk 0:00:54]} 24. Rd6 {[%clk 0:00:48]}  Nc5 {[%clk 0:00:54]} 25. Nh4 {[%clk 0:00:38]}  Bxg2 {[%clk 0:00:51]} 26. Kxg2 {[%clk 0:00:37]}  Rad8 {[%clk 0:00:52]} 27. Rc6 {[%clk 0:00:30]}  Rc8 {[%clk 0:00:47]} 28. Rd6 {[%clk 0:00:28]}  Red8 {[%clk 0:00:47]} 29. Nf5 {[%clk 0:00:28]}  Rxd6 {[%clk 0:00:46]} 30. Nxd6 {[%clk 0:00:29]}  Rd8 {[%clk 0:00:45]} 31. Nb5 {[%clk 0:00:29]}  a6 {[%clk 0:00:40]} 32. Nc3 {[%clk 0:00:26]}  Rd4 {[%clk 0:00:36]} 33. Nd5 {[%clk 0:00:25]}  b5 {[%clk 0:00:37]} 34. Rc3 {[%clk 0:00:12]}  Rxc4 {[%clk 0:00:30]} 35. Rd3 {[%clk 0:00:11]}  Nxd3 {[%clk 0:00:30]} 36. exd3 {[%clk 0:00:10]}  Rd4 {[%clk 0:00:30]} 0-1


[Site "https://www.chess.com"]

[Event "Titled Tuesday Blitz March 22 Late 2022"]
[White "Avazkhonov, Alikhon"]
[Black "Lin, Dachey"]
[WhiteFideId "14208504"]
[BlackFideId "2029650"]
[WhiteElo "1739"]
[BlackElo "2313"]
[Result "0-1"]
[Round "01"]
[TimeControl "180+1"]
[Date "2022.03.22"]
[WhiteClock "0:00:04"]
[BlackClock "0:01:21"]

1. f4 {[%clk 0:02:55]}  g6 {[%clk 0:03:00]} 2. Nf3 {[%clk 0:02:55]}  Bg7 {[%clk 0:03:01]} 3. g3 {[%clk 0:02:55]}  Nf6 {[%clk 0:03:01]} 4. Bg2 {[%clk 0:02:56]}  O-O {[%clk 0:03:01]} 5. O-O {[%clk 0:02:56]}  d6 {[%clk 0:03:01]} 6. d3 {[%clk 0:02:56]}  c5 {[%clk 0:03:02]} 7. e4 {[%clk 0:02:57]}  Nc6 {[%clk 0:03:02]} 8. Nc3 {[%clk 0:02:57]}  Rb8 {[%clk 0:03:02]} 9. h3 {[%clk 0:02:55]}  b5 {[%clk 0:03:03]} 10. g4 {[%clk 0:02:54]}  b4 {[%clk 0:03:03]} 11. Ne2 {[%clk 0:02:53]}  a5 {[%clk 0:02:57]} 12. Be3 {[%clk 0:02:30]}  a4 {[%clk 0:02:54]} 13. Qd2 {[%clk 0:02:16]}  Ba6 {[%clk 0:02:24]} 14. b3 {[%clk 0:01:33]}  d5 {[%clk 0:01:49]} 15. e5 {[%clk 0:00:41]}  d4 {[%clk 0:01:49]} 16. exf6 {[%clk 0:00:22]}  dxe3 {[%clk 0:01:50]} 17. Qxe3 {[%clk 0:00:23]}  Bxf6 {[%clk 0:01:50]} 18. Ne5 {[%clk 0:00:23]}  Nxe5 {[%clk 0:01:41]} 19. fxe5 {[%clk 0:00:24]}  Bg7 {[%clk 0:01:42]} 20. Qxc5 {[%clk 0:00:24]}  Rc8 {[%clk 0:01:34]} 21. Qxb4 {[%clk 0:00:13]}  Rxc2 {[%clk 0:01:34]} 22. Nd4 {[%clk 0:00:11]}  Rc8 {[%clk 0:01:27]} 23. Nc6 {[%clk 0:00:11]}  Qxd3 {[%clk 0:01:24]} 24. Nxe7+ {[%clk 0:00:11]}  Kh8 {[%clk 0:01:24]} 25. Nxc8 {[%clk 0:00:11]}  Rxc8 {[%clk 0:01:25]} 26. Qxa4 {[%clk 0:00:09]}  Bxe5 {[%clk 0:01:23]} 27. Rad1 {[%clk 0:00:09]}  Qg3 {[%clk 0:01:21]} 28. Rf3 {[%clk 0:00:04]}  Qh2+ {[%clk 0:01:21]} 29. Kf2 {[%clk 0:00:05]}  Rc2+ {[%clk 0:01:21]} 30. Ke3 {[%clk 0:00:04]}  Re2# {[%clk 0:01:21]} 0-1


[Site "https://www.chess.com"]

[Event "Titled Tuesday Blitz March 22 Late 2022"]
[White "Bashirli, Nail"]
[Black "Yordanov, Nikolay Plamenov"]
[WhiteFideId "13406809"]
[BlackFideId "2907445"]
[WhiteElo "2333"]
[BlackElo "2248"]
[Result "1-0"]
[Round "01"]
[TimeControl "180+1"]
[Date "2022.03.22"]
[WhiteClock "0:00:18"]
[BlackClock "0:00:10"]

1. e4 {[%clk 0:02:59]}  c5 {[%clk 0:02:59]} 2. Nf3 {[%clk 0:02:53]}  Nc6 {[%clk 0:02:59]} 3. d4 {[%clk 0:02:49]}  cxd4 {[%clk 0:03:00]} 4. Nxd4 {[%clk 0:02:48]}  Nf6 {[%clk 0:02:59]} 5. Nc3 {[%clk 0:02:48]}  e5 {[%clk 0:03:00]} 6. Ndb5 {[%clk 0:02:47]}  d6 {[%clk 0:03:00]} 7. Bg5 {[%clk 0:02:45]}  a6 {[%clk 0:03:00]} 8. Na3 {[%clk 0:02:45]}  b5 {[%clk 0:03:01]} 9. Nd5 {[%clk 0:02:45]}  Be7 {[%clk 0:03:01]} 10. Bxf6 {[%clk 0:02:45]}  Bxf6 {[%clk 0:03:02]} 11. c3 {[%clk 0:02:46]}  Bg5 {[%clk 0:03:02]} 12. Nc2 {[%clk 0:02:45]}  Ne7 {[%clk 0:03:02]} 13. Nxe7 {[%clk 0:02:38]}  Qxe7 {[%clk 0:02:57]} 14. Be2 {[%clk 0:02:38]}  O-O {[%clk 0:02:57]} 15. O-O {[%clk 0:02:37]}  Kh8 {[%clk 0:02:56]} 16. Nb4 {[%clk 0:02:36]}  a5 {[%clk 0:02:40]} 17. Nd5 {[%clk 0:02:35]}  Qb7 {[%clk 0:02:40]} 18. Qd3 {[%clk 0:02:14]}  Rb8 {[%clk 0:02:40]} 19. Rfd1 {[%clk 0:02:13]}  Be6 {[%clk 0:02:38]} 20. Qg3 {[%clk 0:02:01]}  Bd8 {[%clk 0:02:29]} 21. Bf3 {[%clk 0:01:54]}  Rc8 {[%clk 0:02:18]} 22. a3 {[%clk 0:01:49]}  Rc5 {[%clk 0:01:57]} 23. b4 {[%clk 0:01:46]}  axb4 {[%clk 0:01:57]} 24. cxb4 {[%clk 0:01:34]}  Rc8 {[%clk 0:01:53]} 25. Bg4 {[%clk 0:01:33]}  Bb6 {[%clk 0:01:43]} 26. Nxb6 {[%clk 0:01:14]}  Qxb6 {[%clk 0:01:43]} 27. h3 {[%clk 0:01:14]}  f5 {[%clk 0:01:34]} 28. exf5 {[%clk 0:01:11]}  Bxf5 {[%clk 0:01:35]} 29. Rd2 {[%clk 0:01:07]}  Bxg4 {[%clk 0:01:31]} 30. Qxg4 {[%clk 0:01:05]}  Rc4 {[%clk 0:01:23]} 31. Qe6 {[%clk 0:00:53]}  Rd4 {[%clk 0:01:16]} 32. Rad1 {[%clk 0:00:52]}  h6 {[%clk 0:01:07]} 33. Rxd4 {[%clk 0:00:46]}  exd4 {[%clk 0:01:08]} 34. Qe7 {[%clk 0:00:44]}  Rf6 {[%clk 0:01:02]} 35. Qe8+ {[%clk 0:00:42]}  Kh7 {[%clk 0:01:01]} 36. Qe4+ {[%clk 0:00:43]}  Kh8 {[%clk 0:00:56]} 37. Rxd4 {[%clk 0:00:42]}  Qa7 {[%clk 0:00:52]} 38. Qe8+ {[%clk 0:00:36]}  Kh7 {[%clk 0:00:51]} 39. Qe3 {[%clk 0:00:36]}  Qf7 {[%clk 0:00:48]} 40. Rg4 {[%clk 0:00:29]}  d5 {[%clk 0:00:42]} 41. Qd3+ {[%clk 0:00:27]}  Kh8 {[%clk 0:00:42]} 42. Qd4 {[%clk 0:00:23]}  Rc6 {[%clk 0:00:34]} 43. Kh2 {[%clk 0:00:22]}  Qc7+ {[%clk 0:00:31]} 44. Rg3 {[%clk 0:00:21]}  Rd6 {[%clk 0:00:23]} 45. f4 {[%clk 0:00:20]}  Rd7 {[%clk 0:00:21]} 46. Re3 {[%clk 0:00:19]}  Rf7 {[%clk 0:00:20]} 47. Re8+ {[%clk 0:00:19]}  Kh7 {[%clk 0:00:20]} 48. Re5 {[%clk 0:00:20]}  Rd7 {[%clk 0:00:17]} 49. Qd3+ {[%clk 0:00:20]}  g6 {[%clk 0:00:17]} 50. h4 {[%clk 0:00:19]}  Rf7 {[%clk 0:00:16]} 51. h5 {[%clk 0:00:19]}  Qd6 {[%clk 0:00:14]} 52. hxg6+ {[%clk 0:00:17]}  Qxg6 {[%clk 0:00:15]} 53. Qxg6+ {[%clk 0:00:17]}  Kxg6 {[%clk 0:00:16]} 54. Rxd5 {[%clk 0:00:18]}  Ra7 {[%clk 0:00:16]} 55. Rxb5 {[%clk 0:00:19]}  Rxa3 {[%clk 0:00:16]} 56. Rd5 {[%clk 0:00:18]}  Rb3 {[%clk 0:00:16]} 57. b5 {[%clk 0:00:18]}  Kf6 {[%clk 0:00:15]} 58. g3 {[%clk 0:00:16]}  Kg6 {[%clk 0:00:16]} 59. Re5 {[%clk 0:00:17]}  Kf6 {[%clk 0:00:16]} 60. Kh3 {[%clk 0:00:17]}  Kg6 {[%clk 0:00:16]} 61. Kg4 {[%clk 0:00:18]}  Rb4 {[%clk 0:00:16]} 62. Rc5 {[%clk 0:00:17]}  Rb3 {[%clk 0:00:15]} 63. Rc6+ {[%clk 0:00:17]}  Kg7 {[%clk 0:00:15]} 64. b6 {[%clk 0:00:18]}  Rb5 {[%clk 0:00:16]} 65. Kf3 {[%clk 0:00:18]}  Kf7 {[%clk 0:00:16]} 66. Ke4 {[%clk 0:00:18]}  h5 {[%clk 0:00:16]} 67. Kd4 {[%clk 0:00:18]}  Ke7 {[%clk 0:00:17]} 68. Kc4 {[%clk 0:00:18]}  Rb1 {[%clk 0:00:17]} 69. Rh6 {[%clk 0:00:18]}  Rc1+ {[%clk 0:00:14]} 70. Kb5 {[%clk 0:00:18]}  Rb1+ {[%clk 0:00:13]} 71. Kc6 {[%clk 0:00:19]}  Rc1+ {[%clk 0:00:13]} 72. Kb7 {[%clk 0:00:19]}  Rc3 {[%clk 0:00:13]} 73. Rg6 {[%clk 0:00:18]}  Kd7 {[%clk 0:00:13]} 74. Rg7+ {[%clk 0:00:18]}  Kd6 {[%clk 0:00:12]} 75. Kb8 {[%clk 0:00:18]}  Rb3 {[%clk 0:00:12]} 76. b7 {[%clk 0:00:18]}  Kc6 {[%clk 0:00:13]} 77. Kc8 {[%clk 0:00:17]}  Re3 {[%clk 0:00:10]} 78. Rc7+ {[%clk 0:00:16]}  Kd6 {[%clk 0:00:10]} 79. b8=Q {[%clk 0:00:17]}  Re8+ {[%clk 0:00:10]} 80. Kb7 {[%clk 0:00:17]}  Rxb8+ {[%clk 0:00:09]} 81. Kxb8 {[%clk 0:00:18]}  Kd5 {[%clk 0:00:10]} 82. Re7 {[%clk 0:00:18]} 1-0


[Site "https://www.chess.com"]

[Event "Titled Tuesday Blitz March 22 Late 2022"]
[White "Bibasa, Bob"]
[Black "Boyer, Mahel"]
[WhiteFideId "10000240"]
[BlackFideId "45102422"]
[WhiteElo "2056"]
[BlackElo "2328"]
[Result "0-1"]
[Round "01"]
[TimeControl "180+1"]
[Date "2022.03.22"]
[WhiteClock "0:00:11"]
[BlackClock "0:00:15"]

1. e4 {[%clk 0:03:00]}  Nc6 {[%clk 0:02:52]} 2. d4 {[%clk 0:03:00]}  d5 {[%clk 0:02:53]} 3. e5 {[%clk 0:02:59]}  Bf5 {[%clk 0:02:53]} 4. c3 {[%clk 0:02:59]}  e6 {[%clk 0:02:51]} 5. Bd3 {[%clk 0:02:58]}  Nge7 {[%clk 0:02:50]} 6. Nf3 {[%clk 0:02:58]}  f6 {[%clk 0:02:50]} 7. exf6 {[%clk 0:02:57]}  gxf6 {[%clk 0:02:51]} 8. Bf4 {[%clk 0:02:52]}  Qd7 {[%clk 0:02:49]} 9. Na3 {[%clk 0:02:42]}  Bxd3 {[%clk 0:02:46]} 10. Qxd3 {[%clk 0:02:42]}  Ng6 {[%clk 0:02:47]} 11. Bg3 {[%clk 0:02:39]}  e5 {[%clk 0:02:41]} 12. Qe3 {[%clk 0:02:20]}  Bxa3 {[%clk 0:02:34]} 13. bxa3 {[%clk 0:02:20]}  O-O-O {[%clk 0:02:35]} 14. O-O {[%clk 0:02:16]}  h5 {[%clk 0:02:31]} 15. h4 {[%clk 0:02:07]}  Rhg8 {[%clk 0:02:24]} 16. dxe5 {[%clk 0:02:03]}  fxe5 {[%clk 0:02:23]} 17. Rad1 {[%clk 0:01:57]}  Qg4 {[%clk 0:02:17]} 18. Qg5 {[%clk 0:01:46]}  Nf4 {[%clk 0:01:31]} 19. Qxg4+ {[%clk 0:01:28]}  hxg4 {[%clk 0:01:32]} 20. Ng5 {[%clk 0:01:13]}  Ne2+ {[%clk 0:01:27]} 21. Kh2 {[%clk 0:01:13]}  Nxc3 {[%clk 0:01:28]} 22. Rd3 {[%clk 0:01:10]}  d4 {[%clk 0:01:23]} 23. Re1 {[%clk 0:01:06]}  Rde8 {[%clk 0:01:15]} 24. Ne4 {[%clk 0:00:51]}  Nd5 {[%clk 0:01:11]} 25. Rc1 {[%clk 0:00:41]}  Re6 {[%clk 0:00:56]} 26. Rc5 {[%clk 0:00:38]}  Nf4 {[%clk 0:00:52]} 27. Bxf4 {[%clk 0:00:35]}  exf4 {[%clk 0:00:52]} 28. Ng5 {[%clk 0:00:35]}  Re2 {[%clk 0:00:52]} 29. f3 {[%clk 0:00:19]}  Ne5 {[%clk 0:00:42]} 30. Rxd4 {[%clk 0:00:14]}  gxf3 {[%clk 0:00:39]} 31. Rxf4 {[%clk 0:00:14]}  Rxg2+ {[%clk 0:00:35]} 32. Kh1 {[%clk 0:00:13]}  Ng6 {[%clk 0:00:22]} 33. Rxf3 {[%clk 0:00:13]}  Nxh4 {[%clk 0:00:22]} 34. Rh3 {[%clk 0:00:12]}  R8xg5 {[%clk 0:00:17]} 35. Rxg5 {[%clk 0:00:10]}  Rxg5 {[%clk 0:00:18]} 36. Rxh4 {[%clk 0:00:11]}  Rg3 {[%clk 0:00:18]} 37. a4 {[%clk 0:00:10]}  Ra3 {[%clk 0:00:18]} 38. Rh8+ {[%clk 0:00:10]}  Kd7 {[%clk 0:00:19]} 39. Rh7+ {[%clk 0:00:10]}  Kc6 {[%clk 0:00:19]} 40. Rh6+ {[%clk 0:00:11]}  Kc5 {[%clk 0:00:20]} 41. Rh5+ {[%clk 0:00:11]}  Kb6 {[%clk 0:00:20]} 42. Rb5+ {[%clk 0:00:11]}  Ka6 {[%clk 0:00:21]} 43. Rb2 {[%clk 0:00:12]}  Rxa4 {[%clk 0:00:21]} 44. Kg2 {[%clk 0:00:12]}  Rf4 {[%clk 0:00:21]} 45. Kg3 {[%clk 0:00:12]}  Rf8 {[%clk 0:00:21]} 46. Rb3 {[%clk 0:00:11]}  b5 {[%clk 0:00:20]} 47. Ra3+ {[%clk 0:00:11]}  Kb6 {[%clk 0:00:21]} 48. Re3 {[%clk 0:00:11]}  a5 {[%clk 0:00:21]} 49. Re6+ {[%clk 0:00:11]}  c6 {[%clk 0:00:21]} 50. a3 {[%clk 0:00:11]}  b4 {[%clk 0:00:19]} 51. a4 {[%clk 0:00:11]}  Kc5 {[%clk 0:00:19]} 52. Re5+ {[%clk 0:00:11]}  Kb6 {[%clk 0:00:20]} 53. Re6 {[%clk 0:00:11]}  Rf7 {[%clk 0:00:20]} 54. Kg4 {[%clk 0:00:11]}  Rf1 {[%clk 0:00:18]} 55. Kg3 {[%clk 0:00:11]}  Kc5 {[%clk 0:00:13]} 56. Re5+ {[%clk 0:00:10]}  Kd4 {[%clk 0:00:13]} 57. Rxa5 {[%clk 0:00:11]}  b3 {[%clk 0:00:14]} 58. Ra6 {[%clk 0:00:11]}  b2 {[%clk 0:00:14]} 59. Rb6 {[%clk 0:00:11]}  b1=Q {[%clk 0:00:14]} 60. Rxb1 {[%clk 0:00:11]}  Rxb1 {[%clk 0:00:15]} 0-1


[Site "https://www.chess.com"]

[Event "Titled Tuesday Blitz March 22 Late 2022"]
[White "Bryakin, Mikhail"]
[Black "Cruz Mendez, Jean Marco"]
[WhiteFideId "4165314"]
[BlackFideId "3526402"]
[WhiteElo "2417"]
[BlackElo "2064"]
[Result "1-0"]
[Round "01"]
[TimeControl "180+1"]
[Date "2022.03.22"]
[WhiteClock "0:01:37"]
[BlackClock "0:00:58"]

1. e4 {[%clk 0:02:59]}  e5 {[%clk 0:02:59]} 2. d4 {[%clk 0:02:56]}  exd4 {[%clk 0:02:59]} 3. Qxd4 {[%clk 0:02:46]}  Nc6 {[%clk 0:02:59]} 4. Qd3 {[%clk 0:02:38]}  g6 {[%clk 0:02:58]} 5. Nc3 {[%clk 0:02:36]}  Bg7 {[%clk 0:02:58]} 6. Be3 {[%clk 0:02:25]}  Nge7 {[%clk 0:02:58]} 7. O-O-O {[%clk 0:02:19]}  O-O {[%clk 0:02:55]} 8. h4 {[%clk 0:02:17]}  Ne5 {[%clk 0:01:54]} 9. Qd2 {[%clk 0:02:17]}  Ng4 {[%clk 0:01:51]} 10. Bf4 {[%clk 0:02:17]}  d6 {[%clk 0:01:39]} 11. f3 {[%clk 0:02:16]}  Ne5 {[%clk 0:01:39]} 12. h5 {[%clk 0:02:14]}  Be6 {[%clk 0:01:38]} 13. Bh6 {[%clk 0:02:07]}  f5 {[%clk 0:01:17]} 14. hxg6 {[%clk 0:02:05]}  hxg6 {[%clk 0:01:16]} 15. Bxg7 {[%clk 0:02:03]}  Kxg7 {[%clk 0:01:17]} 16. Qh6+ {[%clk 0:01:53]}  Kf7 {[%clk 0:01:17]} 17. Qh7+ {[%clk 0:01:54]}  Ke8 {[%clk 0:01:17]} 18. Nh3 {[%clk 0:01:49]}  Kd7 {[%clk 0:01:12]} 19. Qg7 {[%clk 0:01:39]}  Rf7 {[%clk 0:01:04]} 20. Qxe5 {[%clk 0:01:38]}  Nc6 {[%clk 0:00:58]} 21. Qg3 {[%clk 0:01:37]} 1-0


[Site "https://www.chess.com"]

[Event "Titled Tuesday Blitz March 22 Late 2022"]
[White "Cappai, Davide"]
[Black "Tristan, Leonardo"]
[WhiteFideId "813338"]
[BlackFideId "113816"]
[WhiteElo "2295"]
[BlackElo "2404"]
[Result "0-1"]
[Round "01"]
[TimeControl "180+1"]
[Date "2022.03.22"]
[WhiteClock "0:00:09"]
[BlackClock "0:00:18"]

1. b3 {[%clk 0:02:57]}  d5 {[%clk 0:02:59]} 2. Bb2 {[%clk 0:02:57]}  Bf5 {[%clk 0:02:59]} 3. f4 {[%clk 0:02:58]}  e6 {[%clk 0:02:58]} 4. Nf3 {[%clk 0:02:59]}  f6 {[%clk 0:02:47]} 5. g3 {[%clk 0:02:58]}  Bd6 {[%clk 0:02:47]} 6. Bg2 {[%clk 0:02:59]}  Ne7 {[%clk 0:02:48]} 7. O-O {[%clk 0:02:59]}  c5 {[%clk 0:02:47]} 8. d3 {[%clk 0:03:00]}  Nbc6 {[%clk 0:02:47]} 9. Nbd2 {[%clk 0:03:00]}  d4 {[%clk 0:02:34]} 10. Nh4 {[%clk 0:02:42]}  Bg4 {[%clk 0:02:32]} 11. Qe1 {[%clk 0:02:42]}  Nd5 {[%clk 0:02:21]} 12. Bxd5 {[%clk 0:02:36]}  exd5 {[%clk 0:02:22]} 13. e4 {[%clk 0:02:36]}  dxe3 {[%clk 0:02:17]} 14. Qxe3+ {[%clk 0:02:36]}  Kf7 {[%clk 0:02:15]} 15. Rae1 {[%clk 0:02:29]}  Qd7 {[%clk 0:02:04]} 16. Qf2 {[%clk 0:02:14]}  Bh3 {[%clk 0:02:01]} 17. Ng2 {[%clk 0:02:12]}  Rhe8 {[%clk 0:01:59]} 18. Rxe8 {[%clk 0:02:11]}  Rxe8 {[%clk 0:01:58]} 19. Re1 {[%clk 0:02:12]}  b6 {[%clk 0:01:50]} 20. a3 {[%clk 0:02:03]}  Bg4 {[%clk 0:01:35]} 21. Ne3 {[%clk 0:02:00]}  Bh3 {[%clk 0:01:32]} 22. Nxd5 {[%clk 0:01:52]}  Rxe1+ {[%clk 0:01:31]} 23. Qxe1 {[%clk 0:01:51]}  Qb7 {[%clk 0:01:31]} 24. c4 {[%clk 0:01:50]}  Ne7 {[%clk 0:01:31]} 25. Ne4 {[%clk 0:01:45]}  Bb8 {[%clk 0:01:25]} 26. Nf2 {[%clk 0:01:36]}  Be6 {[%clk 0:01:14]} 27. Nxe7 {[%clk 0:01:33]}  Qxe7 {[%clk 0:01:15]} 28. d4 {[%clk 0:01:33]}  cxd4 {[%clk 0:01:13]} 29. Bxd4 {[%clk 0:01:32]}  Qxa3 {[%clk 0:01:13]} 30. Qe3 {[%clk 0:01:29]}  h5 {[%clk 0:01:05]} 31. Qc3 {[%clk 0:01:18]}  Bd6 {[%clk 0:01:02]} 32. Qb2 {[%clk 0:01:15]}  Qxb2 {[%clk 0:00:57]} 33. Bxb2 {[%clk 0:01:15]}  Bf5 {[%clk 0:00:58]} 34. Kf1 {[%clk 0:00:47]}  Bc2 {[%clk 0:00:57]} 35. Ke2 {[%clk 0:00:48]}  Bxb3 {[%clk 0:00:56]} 36. Kd3 {[%clk 0:00:48]}  Ba4 {[%clk 0:00:53]} 37. Ne4 {[%clk 0:00:48]}  Be7 {[%clk 0:00:54]} 38. Bd4 {[%clk 0:00:36]}  Bc6 {[%clk 0:00:51]} 39. Nc3 {[%clk 0:00:36]}  Ke6 {[%clk 0:00:47]} 40. Ke3 {[%clk 0:00:26]}  Kf5 {[%clk 0:00:45]} 41. Nd5 {[%clk 0:00:23]}  Bd8 {[%clk 0:00:40]} 42. Nb4 {[%clk 0:00:20]}  Bb7 {[%clk 0:00:39]} 43. c5 {[%clk 0:00:19]}  bxc5 {[%clk 0:00:36]} 44. Bxc5 {[%clk 0:00:20]}  Bb6 {[%clk 0:00:36]} 45. Bxb6 {[%clk 0:00:20]}  axb6 {[%clk 0:00:37]} 46. Nc2 {[%clk 0:00:18]}  Kg4 {[%clk 0:00:36]} 47. Kf2 {[%clk 0:00:19]}  Kh3 {[%clk 0:00:34]} 48. Kg1 {[%clk 0:00:19]}  b5 {[%clk 0:00:34]} 49. Nb4 {[%clk 0:00:19]}  Be4 {[%clk 0:00:34]} 50. Na6 {[%clk 0:00:19]}  h4 {[%clk 0:00:29]} 51. gxh4 {[%clk 0:00:17]}  Kxh4 {[%clk 0:00:30]} 52. Kf2 {[%clk 0:00:17]}  Kh3 {[%clk 0:00:29]} 53. Kg1 {[%clk 0:00:17]}  Kg4 {[%clk 0:00:30]} 54. Nc5 {[%clk 0:00:18]}  Bf5 {[%clk 0:00:28]} 55. Nb3 {[%clk 0:00:15]}  Kxf4 {[%clk 0:00:26]} 56. Kf2 {[%clk 0:00:15]}  b4 {[%clk 0:00:25]} 57. Nd4 {[%clk 0:00:16]}  Bd7 {[%clk 0:00:20]} 58. Ne2+ {[%clk 0:00:15]}  Kg4 {[%clk 0:00:20]} 59. Nd4 {[%clk 0:00:15]}  Kh3 {[%clk 0:00:18]} 60. Kg1 {[%clk 0:00:15]}  Ba4 {[%clk 0:00:18]} 61. Ne2 {[%clk 0:00:11]}  b3 {[%clk 0:00:19]} 62. Nf4+ {[%clk 0:00:09]}  Kg4 {[%clk 0:00:16]} 63. Nd3 {[%clk 0:00:10]}  Bb5 {[%clk 0:00:17]} 64. Nb2 {[%clk 0:00:10]}  Kf3 {[%clk 0:00:17]} 65. h4 {[%clk 0:00:09]}  Ke2 {[%clk 0:00:17]} 66. h5 {[%clk 0:00:09]}  Kd2 {[%clk 0:00:17]} 67. h6 {[%clk 0:00:09]}  gxh6 {[%clk 0:00:18]} 0-1


[Site "https://www.chess.com"]